bitfinex-derivatives/quotes_SOLF0:USTF0_20241217
["timestamp","ask_amount","ask_price","bid_price","bid_amount"]
[1734406406598,7.3247746,214.64,214.57,9.4647746]
[1734406407391,2.3296,214.61,214.57,9.4647746]
[1734406408000,2.3296,214.61,214.57,2.14]
[1734406408192,2.3296,214.61,214.57,9.4647746]
[1734406408897,7.3247746,214.64,214.57,7.3247746]
[1734406409101,2.3298,214.6,214.57,7.3247746]
[1734406410397,2.3298,214.6,214.56,9.4647746]
[1734406411799,2.3298,214.6,214.56,11.7949746]
[1734406412002,2.3297,214.61,214.56,11.7949746]
[1734406413097,7.3247746,214.64,214.56,11.7949746]
[1734406413403,2.3298,214.6,214.56,11.7949746]
[1734406414308,2.3294,214.64,214.59,2.3298]
[1734406414503,8.8540746,214.67,214.6,9.4647746]
[1734406414707,1.6164,214.75,214.64,7.3247746]
[1734406414999,2.3288,214.69,214.65,2.3292]
[1734406415201,2.3288,214.69,214.65,4.4692]
[1734406419110,2.3285,214.72,214.66,9.6538746]
[1734406420802,2.3286,214.71,214.66,9.6538746]
[1734406421202,9.6533746,214.71,214.65,2.14]
[1734406422410,9.6533746,214.71,214.65,4.4692]
[1734406423105,9.6533746,214.71,214.65,2.14]
[1734406423313,9.6533746,214.71,214.66,2.3291]
[1734406423708,7.3247746,214.71,214.65,2.14]
[1734406423910,2.3287,214.7,214.65,2.14]
[1734406425414,2.3287,214.7,214.65,4.4692]
[1734406425715,2.3288,214.69,214.65,2.14]
[1734406425918,7.3247746,214.71,214.65,2.14]
[1734406426115,2.3291,214.66,214.62,7.3247746]
[1734406426416,2.3291,214.66,214.63,2.14]
[1734406427909,2.329,214.67,214.64,7.3247746]
[1734406429415,2.329,214.67,214.64,9.4647746]
[1734406430414,1.5865,214.75,214.64,9.4647746]
[1734406430614,1.5865,214.75,214.66,9.6538746]
[1734406430615,2.3286,214.71,214.66,9.6538746]
[1734406431412,7.3247746,214.74,214.66,9.6538746]
[1734406432514,2.3286,214.71,214.66,9.6538746]
[1734406433620,2.3286,214.71,214.66,7.3247746]
[1734406433811,2.3286,214.71,214.67,2.329]
[1734406434014,2.3286,214.71,214.68,2.14]
[1734406434318,257.76646631,214.86,214.7,7.3247746]
[1734406434518,257.76646631,214.86,214.68,2.14]
[1734406434519,7.3247746,214.79,214.72,7.3247746]
[1734406434823,0.74884757,214.78,214.73,2.14]
[1734406435315,8.9083746,214.81,214.73,2.14]
[1734406435521,2.3278,214.78,214.73,4.4683]
[1734406440124,2.3279,214.77,214.73,4.4683]
[1734406446631,2.3279,214.77,214.73,2.14]
[1734406447126,2.3281,214.75,214.73,2.14]
[1734406447528,7.3247746,214.77,214.7,7.3247746]
[1734406447925,7.3247746,214.77,214.71,2.14]
[1734406447926,2.3283,214.74,214.71,2.14]
[1734406450132,2.3284,214.73,214.71,2.14]
[1734406450932,2.3284,214.72,214.71,2.14]
[1734406452735,2.3284,214.72,214.68,9.6536746]
[1734406452928,2.3284,214.72,214.69,2.14]
[1734406454133,2.3284,214.73,214.69,2.14]
[1734406454727,7.3247746,214.73,214.49,4.6619]
[1734406455031,7.3247746,214.71,214.63,9.4647746]
[1734406456026,2.3291,214.67,214.63,7.3247746]
[1734406456326,2.3291,214.67,214.63,9.4647746]
[1734406456734,7.3247746,214.69,214.63,9.4647746]
[1734406456933,7.3247746,214.69,214.63,2.14]
[1734406457326,2.3295,214.63,214.61,2.14]
[1734406458739,4.736,214.7,214.47,53.28]
[1734406458740,7.3247746,214.65,214.47,53.28]
[1734406458935,7.3247746,214.65,214.58,7.3247746]
[1734406458936,2.3297,214.61,214.58,7.3247746]
[1734406460732,2.3298,214.62,214.58,7.3247746]
[1734406461938,2.3293,214.67,214.6,7.3247746]
[1734406462233,2.3293,214.67,214.62,7.3247746]
[1734406463837,2.3291,214.68,214.64,7.3247746]
[1734406464140,7.3247746,214.71,214.65,2.14]
[1734406464342,0.74915188,214.7,214.65,2.14]
[1734406464534,7.3247746,214.71,214.65,2.14]
[1734406465338,2.329,214.69,214.65,2.14]
[1734406469036,2.329,214.69,214.65,2.11948247]
[1734406469944,7.3247746,214.71,214.65,2.11948247]
[1734406469945,2.3293,214.67,214.65,2.11948247]
[1734406470548,7.3247746,214.69,214.65,2.11948247]
[1734406470745,2.3293,214.66,214.65,2.11948247]
[1734406471139,2.3296,214.64,214.62,2.14]
[1734406471338,7.3247746,214.67,214.6,7.3247746]
[1734406471539,7.3247746,214.67,214.6,9.4647746]
[1734406471938,2.3298,214.62,214.6,9.4647746]
[1734406472543,7.3247746,214.63,214.57,9.4647746]
[1734406473651,2.33,214.6,214.57,7.3247746]
[1734406476443,2.33,214.6,214.56,2.31293]
[1734406477550,2.33,214.6,214.56,7.4977046]
[1734406478447,7.3247746,214.63,214.56,7.4977046]
[1734406478642,2.3301,214.59,214.56,7.4977046]
[1734406480349,2.33,214.6,214.56,7.4977046]
[1734406483857,2.3299,214.62,214.58,7.3247746]
[1734406484157,9.4647746,214.66,214.58,7.3247746]
[1734406484558,2.3299,214.61,214.58,7.3247746]
[1734406487161,7.3247746,214.64,214.56,7.4977046]
[1734406487659,7.7086311,214.67,214.58,7.3247746]
[1734406487967,7.3247746,214.65,214.58,7.3247746]
[1734406488165,2.3297,214.63,214.58,7.3247746]
[1734406488461,7.3247746,214.65,214.58,7.3247746]
[1734406489766,7.3247746,214.61,214.56,0.17293]
[1734406489959,7.7086311,214.67,214.56,0.17293]
[1734406490155,7.3247746,214.63,214.56,0.17293]
[1734406491567,2.3301,214.59,214.56,0.17293]
[1734406492657,2.33,214.58,214.55,13.04950417]
[1734406493464,2.33,214.58,214.55,7.3247746]
[1734406494970,2.3298,214.61,214.57,7.3247746]
[1734406495170,7.3247746,214.65,214.57,7.3247746]
[1734406496865,2.3299,214.6,214.57,7.3247746]
[1734406504774,2.33,214.59,214.57,7.3247746]
[1734406508883,7.3247746,214.62,214.55,5.57083145]
[1734406509178,7.3247746,214.62,214.55,7.3247746]
[1734406509482,7.3247746,214.64,214.57,7.3247746]
[1734406510775,7.3247746,214.64,214.54,4.4704]
[1734406510776,2.33,214.58,214.55,7.3247746]
[1734406512877,1.6156,214.64,214.57,9.6548746]
[1734406513078,1.6156,214.64,214.6,7.3247746]
[1734406513381,2.3297,214.61,214.6,7.3247746]
[1734406514578,2.3297,214.61,214.58,9.4647746]
[1734406517982,257.76646631,214.73,214.6,7.3247746]
[1734406518282,9.58166088,214.71,214.64,7.3247746]
[1734406518484,0.74908628,214.7,214.64,7.3247746]
[1734406518690,2.3291,214.67,214.66,7.3247746]
[1734406520889,2.3291,214.66,214.64,7.3247746]
[1734406521890,2.14,214.77,214.64,7.3247746]
[1734406522086,2.14,214.77,214.62,2.14]
[1734406522087,7.3247746,214.75,214.67,7.3247746]
[1734406522389,2.3287,214.7,214.68,2.14]
[1734406522886,7.3247746,214.75,214.69,7.3247746]
[1734406523086,1.5694,214.77,214.71,7.3247746]
[1734406523285,6.62517996,214.78,214.72,2.14]
[1734406523584,2.3276,214.8,214.77,7.3247746]
[1734406525491,2.3276,214.8,214.76,2.14]
[1734406526985,7.3247746,214.82,214.76,2.14]
[1734406527889,2.3277,214.79,214.76,2.14]
[1734406528486,2.3279,214.77,214.7,3.978]
[1734406528790,7.3247746,214.78,214.71,9.4647746]
[1734406530587,2.3281,214.75,214.71,9.4647746]
[1734406530984,2.3283,214.73,214.71,2.14]
[1734406531391,2.3283,214.73,214.7,7.3247746]
[1734406531591,2.3283,214.73,214.68,9.4647746]
[1734406531890,2.3285,214.72,214.68,9.4647746]
[1734406532286,7.3247746,214.74,214.68,9.4647746]
[1734406532486,2.3287,214.7,214.68,9.4647746]
[1734406534490,7.3247746,214.74,214.68,9.4647746]
[1734406534491,2.3283,214.74,214.68,9.4647746]
[1734406534786,7.3247746,214.74,214.68,9.4647746]
[1734406535388,2.3285,214.72,214.68,9.4647746]
[1734406537290,7.3247746,214.74,214.68,2.14]
[1734406537598,2.3287,214.7,214.68,2.14]
[1734406538094,7.3247746,214.74,214.68,9.4647746]
[1734406538291,1.5008,214.76,214.7,7.3247746]
[1734406538595,12.5757746,214.8,214.74,7.3247746]
[1734406538797,0.74863875,214.79,214.74,7.3247746]
[1734406539492,10.4357746,214.8,214.72,9.4647746]
[1734406540098,10.4357746,214.8,214.72,11.7931746]
[1734406540295,0.74871124,214.79,214.74,7.3247746]
[1734406540592,2.3279,214.78,214.74,7.3247746]
[1734406541297,2.3279,214.78,214.76,7.3247746]
[1734406542498,2.3274,214.82,214.76,7.3247746]
[1734406542708,12.5381746,214.85,214.78,7.3247746]
[1734406542902,0.7484995,214.84,214.76,9.4647746]
[1734406543095,7.3247746,214.81,214.74,7.3247746]
[1734406543299,7.3247746,214.81,214.74,9.4647746]
[1734406543698,2.3283,214.74,214.72,7.3247746]
[1734406543899,7.3247746,214.79,214.72,7.3247746]
[1734406544403,7.3247746,214.75,214.69,7.3247746]
[1734406544998,7.3247746,214.75,214.68,2.14]
[1734406545599,7.3247746,214.75,214.69,7.3247746]
[1734406545600,2.3287,214.7,214.69,7.3247746]
[1734406549203,7.3247746,214.73,214.64,2.14]
[1734406549412,7.3247746,214.71,214.64,9.4647746]
[1734406550003,2.3292,214.65,214.62,7.3247746]
[1734406553606,7.3247746,214.69,214.62,7.3247746]
[1734406553816,9.4647746,214.73,214.66,7.3247746]
[1734406554112,0.74895731,214.72,214.66,7.3247746]
[1734406554304,0.74896054,214.71,214.66,7.3247746]
[1734406554504,7.3247746,214.73,214.66,7.3247746]
[1734406554810,2.14,214.74,214.61,2.14]
[1734406554811,7.3247746,214.71,214.61,2.14]
[1734406555013,7.3247746,214.71,214.64,7.3247746]
[1734406555306,2.88896134,214.72,214.66,7.3247746]
[1734406556011,2.3289,214.69,214.66,7.3247746]
[1734406556409,2.88896134,214.72,214.66,7.3247746]
[1734406557410,2.3289,214.68,214.66,7.3247746]
[1734406560318,2.3287,214.7,214.66,7.3247746]
[1734406560918,2.3288,214.69,214.66,7.3247746]
[1734406561116,7.3247746,214.73,214.65,2.14]
[1734406561314,7.3247746,214.71,214.65,2.14]
[1734406561818,0.74890039,214.7,214.65,2.14]
[1734406562417,2.3291,214.67,214.64,7.3247746]
[1734406564014,2.3291,214.67,214.66,7.3247746]
[1734406564221,7.3247746,214.73,214.66,7.3247746]
[1734406564417,2.3289,214.68,214.66,7.3247746]
[1734406566216,326.86238289,214.84,214.67,2.14]
[1734406566424,0.74882372,214.76,214.71,7.3247746]
[1734406566923,2.3284,214.72,214.71,7.3247746]
[1734406568522,7.3247746,214.78,214.71,7.3247746]
[1734406568720,2.3283,214.73,214.71,7.3247746]
[1734406572823,2.328,214.76,214.72,2.14]
[1734406573016,2.328,214.76,214.74,7.3247746]
[1734406575125,13.93477531,214.81,214.74,7.3247746]
[1734406575126,2.3281,214.75,214.74,7.3247746]
[1734406575726,2.328,214.76,214.74,7.3247746]
[1734406580719,1.6419,214.82,214.74,7.3247746]
[1734406580920,7.3247746,214.86,214.78,7.3247746]
[1734406581118,7.3247746,214.86,214.8,7.3247746]
[1734406581119,0.74845192,214.85,214.8,7.3247746]
[1734406581326,2.3274,214.82,214.8,7.3247746]
[1734406582723,3.1296,214.91,214.8,7.3247746]
[1734406582926,2.327,214.86,214.83,7.3247746]
[1734406586229,2.3273,214.83,214.82,2.16]
[1734406586427,2.3273,214.83,214.81,7.3247746]
[1734406598036,7.3247746,214.86,214.79,2.16]
[1734406598242,0.74830401,214.85,214.79,9.4847746]
[1734406598542,2.3275,214.81,214.79,9.4847746]
[1734406599244,2.3276,214.8,214.79,9.4847746]
[1734406608542,2.3273,214.83,214.79,9.4847746]
[1734406608745,2.3273,214.83,214.82,7.3247746]
[1734406610152,2.3271,214.85,214.82,7.3247746]
[1734406612855,2.3272,214.84,214.82,7.3247746]
[1734406621172,2.3273,214.83,214.82,7.3247746]
[1734406621663,2.3273,214.83,214.79,2.16]
[1734406621664,7.3247746,214.86,214.79,2.14]
[1734406621874,7.3247746,214.84,214.76,2.14]
[1734406622069,7.3247746,214.84,214.76,9.4647746]
[1734406622259,8.9235746,214.84,214.78,7.3247746]
[1734406622465,0.748359,214.83,214.78,7.3247746]
[1734406622767,8.9235746,214.84,214.78,7.3247746]
[1734406623469,1.5988,214.84,214.78,7.3247746]
[1734406623967,2.3273,214.83,214.8,7.3247746]
[1734406624170,3.6787,214.9,214.82,7.3247746]
[1734406624368,0.74820317,214.89,214.82,7.3247746]
[1734406624560,2.327,214.85,214.82,7.3247746]
[1734406625366,2.327,214.85,214.84,7.3247746]
[1734406626069,2.3269,214.86,214.84,7.3247746]
[1734406627262,1.5387,214.9,214.84,7.3247746]
[1734406627459,2.14,214.95,214.89,7.3247746]
[1734406627684,0.74810068,214.94,214.89,7.3247746]
[1734406628669,2.3263,214.92,214.89,7.3247746]
[1734406630268,6.62247158,214.96,214.89,7.3247746]
[1734406630470,6.62247158,214.97,214.91,7.3247746]
[1734406630771,0.74797478,214.96,214.91,7.3247746]
[1734406630973,2.3261,214.94,214.91,9.4647746]
[1734406632272,7.3247746,214.96,214.91,2.14]
[1734406632474,0.74799037,214.95,214.88,2.14]
[1734406632670,0.74799037,214.95,214.87,9.4647746]
[1734406633372,13.94724618,214.96,214.87,9.4647746]
[1734406633373,2.3265,214.91,214.87,9.4647746]
[1734406635677,2.3263,214.92,214.89,7.3247746]
[1734406636578,4.8206,214.98,214.91,7.3247746]
[1734406636579,2.3261,214.94,214.91,7.3247746]
[1734406636780,10.5554746,214.98,214.91,9.4647746]
[1734406637076,1.6084,214.98,214.93,7.3247746]
[1734406638075,7.6561631,215.04,214.95,7.3247746]
[1734406638376,8.07251683,215.03,214.96,2.14]
[1734406638576,7.3247746,215.03,214.96,2.14]
[1734406639484,2.3256,214.99,214.96,2.14]
[1734406639675,7.3247746,215.03,214.96,2.14]
[1734406640477,2.3257,214.98,214.96,2.14]
[1734406644588,2.14,215.08,214.97,7.3247746]
[1734406644791,0.74764278,215.06,215.02,7.3247746]
[1734406644989,0.74764278,215.06,215.02,9.4647746]
[1734406645184,3.07254278,215.06,215.02,9.4647746]
[1734406645380,2.3249,215.06,215.02,9.4647746]
[1734406646282,2.3249,215.06,215.04,7.3247746]
[1734406646781,2.325,215.04,215.02,2.14]
[1734406646986,7.3247746,215.08,215.02,2.14]
[1734406647185,0.74751129,215.07,215.02,2.14]
[1734406647487,2.3251,215.03,215.02,2.14]
[1734406651187,8.07229356,215.03,214.84,2.14]
[1734406651392,7.3247746,214.98,214.9,7.3247746]
[1734406651591,2.3262,214.93,214.9,7.3247746]
[1734406651890,2.3262,214.93,214.9,9.4647746]
[1734406653104,7.3247746,214.96,214.88,7.3247746]
[1734406653289,7.3247746,214.94,214.88,9.4647746]
[1734406653899,2.3265,214.9,214.88,9.4647746]
[1734406654595,2.3266,214.89,214.88,9.4647746]
[1734406654795,2.3266,214.89,214.88,7.3247746]
[1734406654993,7.3247746,214.92,214.86,7.3247746]
[1734406657289,1.5849,214.95,214.86,7.3247746]
[1734406657290,2.3268,214.88,214.86,7.3247746]
[1734406661386,1.5849,214.95,214.86,7.3247746]
[1734406661590,2.3265,214.9,214.88,7.3247746]
[1734406663998,2.3266,214.89,214.88,7.3247746]
[1734406664198,2.3266,214.89,214.86,7.3247746]
[1734406664995,2.3268,214.87,214.86,7.3247746]
[1734406665794,7.3247746,214.94,214.86,7.3247746]
[1734406666006,2.3267,214.89,214.86,7.3247746]
[1734406666199,1.5849,214.95,214.88,7.3247746]
[1734406667195,7.3247746,214.96,214.9,7.3247746]
[1734406667396,7.3247746,214.98,214.9,7.3247746]
[1734406668896,7.3247746,214.98,214.92,7.3247746]
[1734406669101,7.3247746,215.0,214.92,7.3247746]
[1734406669305,2.326,214.95,214.92,7.3247746]
[1734406670500,7.3247746,215.0,214.92,7.3247746]
[1734406670701,2.3261,214.94,214.92,7.3247746]
[1734406671097,2.3263,214.92,214.89,2.14]
[1734406671302,2.3263,214.92,214.9,7.3247746]
[1734406671801,2.3263,214.92,214.9,9.4647746]
[1734406673100,2.3262,214.93,214.9,9.4647746]
[1734406673411,7.3247746,215.0,214.92,7.3247746]
[1734406673598,2.3258,214.97,214.92,7.3247746]
[1734406673799,2.3258,214.97,214.9,2.14]
[1734406674003,2.3258,214.97,214.94,7.3247746]
[1734406674504,2.3258,214.97,214.94,9.4647746]
[1734406676809,2.3258,214.97,214.94,2.14]
[1734406677605,7.3247746,215.0,214.94,2.14]
[1734406677606,2.3259,214.96,214.94,2.14]
[1734406679111,2.326,214.95,214.94,2.14]
[1734406680107,7.3247746,214.96,214.91,2.16]
[1734406680509,2.3263,214.92,214.91,2.16]
[1734406683205,7.3247746,214.96,214.89,7.3247746]
[1734406683206,2.3264,214.91,214.89,7.3247746]
[1734406683513,7.3247746,214.94,214.88,7.3247746]
[1734406683809,2.3266,214.89,214.88,7.3247746]
[1734406684005,7.3247746,214.94,214.88,7.3247746]
[1734406684512,2.3265,214.9,214.88,7.3247746]
[1734406687710,2.16,214.98,214.88,7.3247746]
[1734406687915,9.4847746,214.98,214.91,7.3247746]
[1734406688115,7.3247746,214.98,214.91,9.4847746]
[1734406688508,2.3262,214.94,214.91,9.4847746]
[1734406690704,2.3262,214.93,214.91,9.4847746]
[1734406690909,2.3262,214.93,214.91,2.16]
[1734406691219,7.3247746,214.98,214.91,2.16]
[1734406691421,2.3259,214.96,214.91,2.16]
[1734406691626,7.3247746,214.98,214.91,2.16]
[1734406692221,2.3263,214.93,214.91,2.16]
[1734406692825,7.3247746,214.96,214.86,5.61195696]
[1734406693021,2.3264,214.92,214.88,7.3247746]
[1734406693324,7.3247746,214.94,214.88,7.3247746]
[1734406693620,2.3266,214.89,214.88,2.16]
[1734406696926,2.3266,214.89,214.88,9.4847746]
[1734406698821,2.16,214.97,214.88,9.4847746]
[1734406699031,7.3247746,214.98,214.91,7.3247746]
[1734406699730,2.3262,214.94,214.91,7.3247746]
[1734406699931,7.3247746,214.96,214.89,7.3247746]
[1734406701428,2.3262,214.93,214.89,7.3247746]
[1734406701625,2.3262,214.93,214.89,2.16]
[1734406701831,2.3262,214.93,214.89,9.4847746]
[1734406703032,7.3247746,214.96,214.89,9.4847746]
[1734406703234,2.3263,214.92,214.89,9.4847746]
[1734406703431,2.3263,214.92,214.89,7.3247746]
[1734406703636,7.3247746,214.94,214.89,2.16]
[1734406704633,2.3265,214.9,214.89,2.16]
[1734406708035,7.3247746,214.9,214.85,2.14]
[1734406708738,2.3268,214.87,214.85,2.14]
[1734406709137,7.3247746,214.9,214.85,2.14]
[1734406710235,2.3269,214.87,214.85,2.14]
[1734406715842,2.3269,214.87,214.85,9.4647746]
[1734406716040,2.3267,214.89,214.85,9.4647746]
[1734406716237,7.3247746,214.92,214.87,7.3247746]
[1734406717543,2.3266,214.89,214.87,7.3247746]
[1734406718141,2.3267,214.88,214.85,9.4647746]
[1734406720941,7.3247746,214.92,214.85,9.4647746]
[1734406722044,7.3247746,214.9,214.85,2.14]
[1734406723239,2.3269,214.86,214.85,2.14]
[1734406727249,2.3273,214.83,214.78,2.3277]
[1734406727439,7.3247746,214.86,214.8,7.3247746]
[1734406728348,7.3247746,214.84,214.7,3.1612]
[1734406728543,2.3276,214.81,214.78,7.3247746]
[1734406729145,2.3277,214.8,214.77,2.14]
[1734406730446,2.3277,214.79,214.77,2.14]
[1734406730643,2.3277,214.79,214.77,7.74398714]
[1734406732549,2.3277,214.79,214.77,2.14]
[1734406734451,2.3278,214.78,214.77,2.14]
[1734406736250,2.3278,214.78,214.76,7.3247746]
[1734406736451,2.3278,214.78,214.76,9.4647746]
[1734406737054,2.3278,214.78,214.76,2.14]
[1734406737255,2.3279,214.77,214.76,2.14]
[1734406738972,2.3281,214.76,214.74,9.4647746]
[1734406741456,7.3247746,214.78,214.7,5.70286512]
[1734406741655,7.3247746,214.78,214.71,2.14]
[1734406741859,7.3247746,214.78,214.7,13.02763972]
[1734406742056,2.3284,214.72,214.7,9.4647746]
[1734406742254,7.3247746,214.76,214.7,7.3247746]
[1734406742454,7.3247746,214.72,214.61,3.34002602]
[1734406742655,7.3247746,214.72,214.64,7.3247746]
[1734406743459,7.3247746,214.72,214.66,7.3247746]
[1734406744661,2.329,214.68,214.66,7.3247746]
[1734406745354,2.329,214.68,214.64,5.52461525]
[1734406745554,7.3247746,214.72,214.64,5.52461525]
[1734406745758,7.3247746,214.7,214.63,2.14]
[1734406746270,2.3292,214.66,214.63,2.14]
[1734406749663,3.1274,214.74,214.64,7.3247746]
[1734406749861,1.5266,214.75,214.68,7.3247746]
[1734406750063,8.8513746,214.75,214.68,7.3247746]
[1734406750364,2.3284,214.73,214.68,7.3247746]
[1734406750664,8.8513746,214.75,214.68,7.3247746]
[1734406751164,2.3286,214.72,214.68,7.3247746]
[1734406751765,2.3283,214.74,214.69,2.3288]
[1734406751967,7.3247746,214.75,214.68,7.3247746]
[1734406753161,7.3247746,214.75,214.68,9.6535746]
[1734406754563,2.3284,214.73,214.68,9.6535746]
[1734406756366,2.14,214.8,214.68,7.3247746]
[1734406756566,2.14,214.8,214.67,2.14]
[1734406756567,7.3247746,214.77,214.7,9.6534746]
[1734406756763,7.3247746,214.77,214.71,2.14]
[1734406757357,2.328,214.76,214.71,4.4686]
[1734406757563,1.6478,214.83,214.71,4.4686]
[1734406757564,1.6478,214.83,214.72,7.3247746]
[1734406757762,7.3247746,214.8,214.72,7.3247746]
[1734406757967,2.3278,214.79,214.73,2.3283]
[1734406758262,7.3247746,214.8,214.73,2.3283]
[1734406759562,2.3278,214.78,214.73,2.3283]
[1734406760365,7.3247746,214.81,214.74,9.6529746]
[1734406760563,7.3247746,214.81,214.75,2.14]
[1734406761466,2.3277,214.79,214.75,2.14]
[1734406761866,7.3247746,214.79,214.75,2.14]
[1734406762770,2.3278,214.78,214.75,2.14]
[1734406766271,2.3279,214.77,214.74,2.14]
[1734406767365,2.3278,214.78,214.74,2.14]
[1734406767973,2.3278,214.78,214.75,5.70173584]
[1734406773371,1.6478,214.83,214.75,5.70173584]
[1734406773578,7.3247746,214.84,214.78,7.3247746]
[1734406773776,2.14,214.9,214.79,2.14]
[1734406773979,2.3272,214.84,214.8,2.3276]
[1734406775075,2.3272,214.84,214.79,4.4677]
[1734406775475,7.3247746,214.86,214.79,4.4677]
[1734406775682,2.3273,214.83,214.79,4.4677]
[1734406776380,2.3272,214.84,214.79,4.4677]
[1734406778778,2.14,214.91,214.79,4.4677]
[1734406778984,0.74823152,214.9,214.82,7.3247746]
[1734406779179,7.3247746,214.9,214.83,2.14]
[1734406780482,2.3268,214.88,214.84,2.3271]
[1734406780976,2.3268,214.88,214.83,2.14]
[1734406781180,2.3268,214.88,214.84,7.3247746]
[1734406784384,7.3247746,214.9,214.84,7.3247746]
[1734406784688,2.3264,214.92,214.86,9.6516746]
[1734406784887,2.3264,214.92,214.87,2.14]
[1734406785684,2.3265,214.91,214.87,2.14]
[1734406786788,2.3265,214.9,214.87,2.14]
[1734406787992,7.3247746,214.91,214.87,2.14]
[1734406788584,2.3266,214.89,214.87,2.14]
[1734406790493,7.3247746,214.91,214.84,7.3247746]
[1734406790794,2.3266,214.89,214.85,2.14]
[1734406791295,2.3268,214.88,214.85,2.14]
[1734406793805,2.3266,214.9,214.85,2.14]
[1734406794104,7.3247746,214.91,214.85,2.14]
[1734406794806,2.3268,214.88,214.85,2.14]
[1734406796401,2.3268,214.88,214.84,9.6518746]
[1734406796706,2.3268,214.88,214.86,2.14]
[1734406799302,2.3265,214.91,214.86,4.4668]
[1734406799601,7.3247746,214.97,214.89,7.3247746]
[1734406799808,0.74791144,214.96,214.9,2.14]
[1734406800502,7.3247746,214.97,214.9,4.4665]
[1734406800805,7.3247746,214.95,214.9,2.14]
[1734406802802,7.3247746,214.91,214.88,2.12]
[1734406803405,2.3265,214.9,214.88,2.12]
[1734406804903,4.6233,214.99,214.89,7.3247746]
[1734406805209,4.6233,214.99,214.91,7.3247746]
[1734406805403,2.3259,214.96,214.92,2.12]
[1734406807809,2.3257,214.98,214.93,7.3247746]
[1734406808007,4.6233,214.99,214.93,7.3247746]
[1734406808900,2.3257,214.97,214.93,7.3247746]
[1734406811210,2.3257,214.98,214.93,7.3247746]
[1734406811405,4.6233,214.99,214.93,7.3247746]
[1734406812003,4.6233,214.99,214.92,2.12]
[1734406812004,2.3259,214.96,214.92,2.12]
[1734406812211,2.3259,214.96,214.87,2.3267]
[1734406812212,7.3247746,214.96,214.87,2.3267]
[1734406812408,7.3247746,214.94,214.88,2.12]
[1734406813215,2.3264,214.91,214.88,2.12]
[1734406813518,7.3247746,214.94,214.87,7.3247746]
[1734406813813,7.3247746,214.92,214.88,2.12]
[1734406814011,7.3247746,214.92,214.85,15.20642319]
[1734406814321,2.3266,214.89,214.88,2.12]
[1734406815316,7.3247746,214.92,214.88,2.12]
[1734406816009,7.3247746,214.94,214.88,2.12]
[1734406816411,2.3265,214.9,214.88,2.12]
[1734406817616,9.6510746,214.92,214.88,2.12]
[1734406818116,7.3247746,214.94,214.88,9.4447746]
[1734406819320,2.3263,214.92,214.88,9.4447746]
[1734406819916,2.3264,214.91,214.88,9.4447746]
[1734406821121,4.6233,214.99,214.9,7.3247746]
[1734406821326,7.3247746,214.97,214.9,9.6512746]
[1734406821717,2.326,214.95,214.9,9.6512746]
[1734406822619,7.3247746,214.95,214.88,7.3247746]
[1734406822824,7.3247746,214.95,214.89,2.12]
[1734406824226,2.3264,214.91,214.88,7.3247746]
[1734406824425,7.3247746,214.95,214.88,7.3247746]
[1734406824626,7.3247746,214.93,214.89,2.12]
[1734406824923,2.3265,214.9,214.89,2.12]
[1734406826529,7.3247746,214.93,214.88,2.12]
[1734406827532,2.3266,214.89,214.88,2.12]
[1734406830729,2.3268,214.88,214.84,7.3247746]
[1734406830931,2.3268,214.88,214.85,2.12]
[1734406831331,7.3247746,214.89,214.85,2.12]
[1734406831530,2.3269,214.86,214.85,2.12]
[1734406832228,2.3269,214.86,214.83,7.3247746]
[1734406832426,2.3269,214.86,214.84,2.12]
[1734406835539,2.3269,214.86,214.85,7.3247746]
[1734406838335,2.3269,214.86,214.84,2.12]
[1734406839630,2.3269,214.86,214.85,2.12]
[1734406840636,2.3269,214.86,214.85,9.4447746]
[1734406840837,2.3268,214.87,214.85,9.4447746]
[1734406844036,2.3268,214.87,214.85,2.12]
[1734406844236,2.3269,214.86,214.85,2.12]
[1734406844846,7.3247746,214.87,214.83,2.12]
[1734406845141,7.3247746,214.88,214.83,2.12]
[1734406846036,2.3271,214.85,214.83,2.12]